[Event "January 2 Late 2024"]
[Site "https://www.chess.com"]
[Date "2024.01.02"]
[Round "10"]
[White "Suvorov, Luca"]
[Black "Gerbelli Neto, Eduardo"]
[Result "1/2-1/2"]
[Board "88"]
[TimeControl "180+1"]
[WhiteFideId "12977071"]
[BlackFideId "2103281"]
[WhiteElo "2504"]
[BlackElo "2375"]
[WhiteTeam "GER"]
[BlackTeam "BRA"]
[WhiteClock "0:00:04"]
[BlackClock "0:00:06"]

1. e4 {[%clk 0:03:00]}  e5 {[%clk 0:02:59]} 2. Nf3 {[%clk 0:03:00]}  Nc6 {[%clk 0:03:00]} 3. Bb5 {[%clk 0:02:51]}  a6 {[%clk 0:02:59]} 4. Ba4 {[%clk 0:02:52]}  d6 {[%clk 0:02:59]} 5. O-O {[%clk 0:02:48]}  Bg4 {[%clk 0:02:59]} 6. h3 {[%clk 0:02:45]}  h5 {[%clk 0:02:59]} 7. Bxc6+ {[%clk 0:02:37]}  bxc6 {[%clk 0:02:59]} 8. d3 {[%clk 0:02:38]}  Qf6 {[%clk 0:02:58]} 9. Nbd2 {[%clk 0:02:38]}  Ne7 {[%clk 0:02:56]} 10. Qe1 {[%clk 0:02:37]}  Ng6 {[%clk 0:02:55]} 11. Nh2 {[%clk 0:02:37]}  Nf4 {[%clk 0:02:41]} 12. Ndf3 {[%clk 0:01:55]}  Nxh3+ {[%clk 0:02:32]} 13. gxh3 {[%clk 0:01:46]}  Bxf3 {[%clk 0:02:32]} 14. Qe3 {[%clk 0:01:46]}  Bg4 {[%clk 0:02:16]} 15. hxg4 {[%clk 0:01:43]}  hxg4 {[%clk 0:02:16]} 16. Qg5 {[%clk 0:01:42]}  Qe6 {[%clk 0:01:51]} 17. Qxg4 {[%clk 0:01:37]}  Qf6 {[%clk 0:01:51]} 18. Qg5 {[%clk 0:01:32]}  Qe6 {[%clk 0:01:50]} 19. Qg4 {[%clk 0:01:33]}  Qf6 {[%clk 0:01:50]} 20. f4 {[%clk 0:01:10]}  Be7 {[%clk 0:01:42]} 21. Rf2 {[%clk 0:01:02]}  Rh4 {[%clk 0:01:07]} 22. Qg3 {[%clk 0:00:57]}  O-O-O {[%clk 0:00:53]} 23. fxe5 {[%clk 0:00:46]}  Qxe5 {[%clk 0:00:43]} 24. Qxe5 {[%clk 0:00:42]}  dxe5 {[%clk 0:00:44]} 25. Be3 {[%clk 0:00:39]}  Rdh8 {[%clk 0:00:43]} 26. Raf1 {[%clk 0:00:38]}  Rh3 {[%clk 0:00:44]} 27. Re1 {[%clk 0:00:20]}  Bh4 {[%clk 0:00:34]} 28. Nf3 {[%clk 0:00:13]}  Rxf3 {[%clk 0:00:27]} 29. Rxf3 {[%clk 0:00:12]}  Bxe1 {[%clk 0:00:28]} 30. Rxf7 {[%clk 0:00:12]}  g5 {[%clk 0:00:24]} 31. Rf5 {[%clk 0:00:11]}  g4 {[%clk 0:00:22]} 32. Rxe5 {[%clk 0:00:08]}  g3 {[%clk 0:00:21]} 33. Rg5 {[%clk 0:00:08]}  Rf8 {[%clk 0:00:20]} 34. Rf5 {[%clk 0:00:07]}  Rh8 {[%clk 0:00:20]} 35. Bf4 {[%clk 0:00:07]}  Rh2 {[%clk 0:00:17]} 36. Rf8+ {[%clk 0:00:06]}  Kb7 {[%clk 0:00:17]} 37. Rg8 {[%clk 0:00:04]}  Rxc2 {[%clk 0:00:14]} 38. Bxg3 {[%clk 0:00:05]}  Bxg3 {[%clk 0:00:13]} 39. Rxg3 {[%clk 0:00:05]}  Rxb2 {[%clk 0:00:13]} 40. Rg2 {[%clk 0:00:06]}  Rb1+ {[%clk 0:00:13]} 41. Kf2 {[%clk 0:00:06]}  Rd1 {[%clk 0:00:14]} 42. Ke3 {[%clk 0:00:06]}  c5 {[%clk 0:00:14]} 43. Rc2 {[%clk 0:00:06]}  Kb6 {[%clk 0:00:13]} 44. Rb2+ {[%clk 0:00:07]}  Kc6 {[%clk 0:00:13]} 45. Rc2 {[%clk 0:00:07]}  Kd6 {[%clk 0:00:13]} 46. Rd2 {[%clk 0:00:08]}  Rf1 {[%clk 0:00:11]} 47. Ke2 {[%clk 0:00:08]}  Rh1 {[%clk 0:00:11]} 48. Kf3 {[%clk 0:00:07]}  Ke5 {[%clk 0:00:11]} 49. Rc2 {[%clk 0:00:05]}  Kd4 {[%clk 0:00:10]} 50. Rc4+ {[%clk 0:00:06]}  Kxd3 {[%clk 0:00:10]} 51. Rxc5 {[%clk 0:00:06]}  Ra1 {[%clk 0:00:10]} 52. Rd5+ {[%clk 0:00:03]}  Kc4 {[%clk 0:00:10]} 53. Ra5 {[%clk 0:00:04]}  c5 {[%clk 0:00:08]} 54. Rxa6 {[%clk 0:00:04]}  Kb5 {[%clk 0:00:08]} 55. Ra8 {[%clk 0:00:05]}  Rf1+ {[%clk 0:00:08]} 56. Ke3 {[%clk 0:00:05]}  c4 {[%clk 0:00:08]} 57. e5 {[%clk 0:00:04]}  Re1+ {[%clk 0:00:06]} 58. Kd4 {[%clk 0:00:05]}  Rd1+ {[%clk 0:00:04]} 59. Ke4 {[%clk 0:00:05]}  c3 {[%clk 0:00:04]} 60. Rc8 {[%clk 0:00:05]}  Re1+ {[%clk 0:00:03]} 61. Kd5 {[%clk 0:00:05]}  Rd1+ {[%clk 0:00:03]} 62. Ke4 {[%clk 0:00:04]}  Rd2 {[%clk 0:00:03]} 63. e6 {[%clk 0:00:04]}  Re2+ {[%clk 0:00:02]} 64. Kd5 {[%clk 0:00:03]}  Rxa2 {[%clk 0:00:02]} 65. Kd6 {[%clk 0:00:03]}  Rd2+ {[%clk 0:00:03]} 66. Ke7 {[%clk 0:00:03]}  c2 {[%clk 0:00:04]} 67. Kf7 {[%clk 0:00:03]}  Rf2+ {[%clk 0:00:04]} 68. Ke8 {[%clk 0:00:04]}  Kb4 {[%clk 0:00:04]} 69. e7 {[%clk 0:00:03]}  Kb3 {[%clk 0:00:04]} 70. Rb8+ {[%clk 0:00:02]}  Kc3 {[%clk 0:00:04]} 71. Rc8+ {[%clk 0:00:03]}  Kd2 {[%clk 0:00:04]} 72. Kd7 {[%clk 0:00:03]}  Re2 {[%clk 0:00:04]} 73. e8=Q {[%clk 0:00:02]}  Rxe8 {[%clk 0:00:04]} 74. Kxe8 {[%clk 0:00:03]}  c1=Q {[%clk 0:00:05]} 75. Rxc1 {[%clk 0:00:04]}  Kxc1 {[%clk 0:00:06]} 1/2-1/2

[Event "January 2 Late 2024"]
[Site "https://www.chess.com"]
[Date "2024.01.02"]
[Round "10"]
[White "Rodriguez Avila, Alvaro"]
[Black "Stojanovski, Sandi"]
[Result "1-0"]
[Board "90"]
[TimeControl "180+1"]
[WhiteFideId "24570249"]
[BlackFideId "1403249"]
[WhiteElo "2325"]
[BlackElo "2494"]
[WhiteTeam "ESP"]
[BlackTeam "DEN"]
[WhiteClock "0:00:03"]
[BlackClock "0:00:00"]

1. e4 {[%clk 0:03:00]}  d6 {[%clk 0:02:59]} 2. d4 {[%clk 0:03:00]}  Nf6 {[%clk 0:02:59]} 3. Nc3 {[%clk 0:03:00]}  g6 {[%clk 0:02:59]} 4. Bg5 {[%clk 0:03:01]}  Bg7 {[%clk 0:02:48]} 5. e5 {[%clk 0:03:01]}  Nfd7 {[%clk 0:02:47]} 6. exd6 {[%clk 0:03:01]}  cxd6 {[%clk 0:02:47]} 7. Qd2 {[%clk 0:03:02]}  Nc6 {[%clk 0:02:45]} 8. Nf3 {[%clk 0:03:02]}  Nf6 {[%clk 0:02:25]} 9. Be2 {[%clk 0:02:57]}  O-O {[%clk 0:02:23]} 10. O-O-O {[%clk 0:02:45]}  Bf5 {[%clk 0:02:13]} 11. h4 {[%clk 0:02:41]}  Nb4 {[%clk 0:02:06]} 12. Ne1 {[%clk 0:02:03]}  Qa5 {[%clk 0:01:48]} 13. a3 {[%clk 0:01:55]}  Rfc8 {[%clk 0:01:47]} 14. Kb1 {[%clk 0:01:38]}  Nxc2 {[%clk 0:00:51]} 15. Nxc2 {[%clk 0:01:36]}  Nd5 {[%clk 0:00:47]} 16. Rh3 {[%clk 0:01:12]}  Bxh3 {[%clk 0:00:32]} 17. Nxd5 {[%clk 0:01:09]}  Qxd5 {[%clk 0:00:30]} 18. gxh3 {[%clk 0:01:09]}  Qf5 {[%clk 0:00:15]} 19. Bg4 {[%clk 0:01:04]}  Qe4 {[%clk 0:00:11]} 20. Re1 {[%clk 0:01:03]}  Qd5 {[%clk 0:00:09]} 21. Bxe7 {[%clk 0:00:53]}  Re8 {[%clk 0:00:09]} 22. Bd7 {[%clk 0:00:39]}  Reb8 {[%clk 0:00:08]} 23. Qf4 {[%clk 0:00:30]}  a5 {[%clk 0:00:05]} 24. Rd1 {[%clk 0:00:17]}  b5 {[%clk 0:00:05]} 25. Ne3 {[%clk 0:00:16]}  Qb3 {[%clk 0:00:04]} 26. Bxd6 {[%clk 0:00:13]}  b4 {[%clk 0:00:03]} 27. Bxb8 {[%clk 0:00:12]}  bxa3 {[%clk 0:00:03]} 28. Nc4 {[%clk 0:00:04]}  Qxd1+ {[%clk 0:00:02]} 29. Ka2 {[%clk 0:00:03]}  axb2 {[%clk 0:00:01]} 30. Nxb2 {[%clk 0:00:04]}  Qc2 {[%clk 0:00:00]} 31. Be5 {[%clk 0:00:03]} 1-0

[Event "January 2 Late 2024"]
[Site "https://www.chess.com"]
[Date "2024.01.02"]
[Round "10"]
[White "Sukandar, Irine Kharisma"]
[Black "Lalanne, Pablo"]
[Result "1-0"]
[Board "91"]
[TimeControl "180+1"]
[WhiteFideId "7101937"]
[BlackFideId "112151"]
[WhiteElo "2479"]
[BlackElo "2324"]
[WhiteTeam "INA"]
[BlackTeam "ARG"]
[WhiteClock "0:00:13"]
[BlackClock "0:00:06"]

1. d4 {[%clk 0:03:00]}  Nf6 {[%clk 0:02:59]} 2. Bf4 {[%clk 0:03:01]}  e6 {[%clk 0:02:59]} 3. e3 {[%clk 0:03:01]}  d5 {[%clk 0:03:00]} 4. Nf3 {[%clk 0:03:00]}  c5 {[%clk 0:03:00]} 5. Nc3 {[%clk 0:03:00]}  a6 {[%clk 0:02:59]} 6. Ne5 {[%clk 0:02:51]}  Nc6 {[%clk 0:02:59]} 7. Be2 {[%clk 0:02:44]}  Bd6 {[%clk 0:02:53]} 8. Nxc6 {[%clk 0:02:38]}  bxc6 {[%clk 0:02:53]} 9. Bxd6 {[%clk 0:02:38]}  Qxd6 {[%clk 0:02:53]} 10. O-O {[%clk 0:02:38]}  O-O {[%clk 0:02:51]} 11. Na4 {[%clk 0:02:35]}  cxd4 {[%clk 0:02:45]} 12. exd4 {[%clk 0:02:35]}  e5 {[%clk 0:02:41]} 13. dxe5 {[%clk 0:02:27]}  Qxe5 {[%clk 0:02:41]} 14. c3 {[%clk 0:02:27]}  a5 {[%clk 0:02:28]} 15. Re1 {[%clk 0:02:27]}  Qf5 {[%clk 0:02:24]} 16. Bf3 {[%clk 0:02:18]}  Be6 {[%clk 0:02:04]} 17. Qd4 {[%clk 0:02:16]}  Nd7 {[%clk 0:01:40]} 18. Re2 {[%clk 0:02:07]}  Rac8 {[%clk 0:01:35]} 19. Nc5 {[%clk 0:02:01]}  Nxc5 {[%clk 0:01:34]} 20. Qxc5 {[%clk 0:02:02]}  Qg6 {[%clk 0:01:26]} 21. Qxa5 {[%clk 0:01:59]}  Bg4 {[%clk 0:01:26]} 22. Bxg4 {[%clk 0:01:53]}  Qxg4 {[%clk 0:01:26]} 23. Rae1 {[%clk 0:01:53]}  h5 {[%clk 0:01:21]} 24. h3 {[%clk 0:01:53]}  Qg6 {[%clk 0:01:18]} 25. Qc5 {[%clk 0:01:51]}  Ra8 {[%clk 0:01:13]} 26. a4 {[%clk 0:01:50]}  Rfb8 {[%clk 0:01:04]} 27. a5 {[%clk 0:01:22]}  Kh7 {[%clk 0:01:00]} 28. b4 {[%clk 0:01:20]}  Rb5 {[%clk 0:00:51]} 29. Qd4 {[%clk 0:01:18]}  f6 {[%clk 0:00:42]} 30. Re3 {[%clk 0:01:17]}  Qf5 {[%clk 0:00:37]} 31. Rf3 {[%clk 0:01:15]}  Qg5 {[%clk 0:00:35]} 32. Rg3 {[%clk 0:01:15]}  Qf5 {[%clk 0:00:35]} 33. Re7 {[%clk 0:01:15]}  Rg8 {[%clk 0:00:31]} 34. a6 {[%clk 0:01:13]}  c5 {[%clk 0:00:27]} 35. bxc5 {[%clk 0:01:09]}  Ra5 {[%clk 0:00:28]} 36. a7 {[%clk 0:01:04]}  Kh6 {[%clk 0:00:23]} 37. Qe3+ {[%clk 0:00:59]}  g5 {[%clk 0:00:22]} 38. Qd3 {[%clk 0:00:56]}  Qxd3 {[%clk 0:00:19]} 39. Rxd3 {[%clk 0:00:56]}  Rxc5 {[%clk 0:00:18]} 40. Rde3 {[%clk 0:00:43]}  Ra8 {[%clk 0:00:17]} 41. R3e6 {[%clk 0:00:39]}  Kg6 {[%clk 0:00:16]} 42. Ra6 {[%clk 0:00:28]}  Rxc3 {[%clk 0:00:14]} 43. Rd7 {[%clk 0:00:25]}  Rc5 {[%clk 0:00:13]} 44. Kh2 {[%clk 0:00:24]}  h4 {[%clk 0:00:13]} 45. f3 {[%clk 0:00:23]}  Kf5 {[%clk 0:00:11]} 46. Rf7 {[%clk 0:00:22]}  Ke5 {[%clk 0:00:11]} 47. Rfxf6 {[%clk 0:00:22]}  d4 {[%clk 0:00:10]} 48. Rfe6+ {[%clk 0:00:13]}  Kd5 {[%clk 0:00:10]} 49. Red6+ {[%clk 0:00:12]}  Kc4 {[%clk 0:00:10]} 50. Ra4+ {[%clk 0:00:11]}  Kb5 {[%clk 0:00:10]} 51. Rdxd4 {[%clk 0:00:12]}  Rc7 {[%clk 0:00:08]} 52. Rdb4+ {[%clk 0:00:12]}  Kc6 {[%clk 0:00:08]} 53. Rc4+ {[%clk 0:00:12]}  Kb7 {[%clk 0:00:08]} 54. Rxc7+ {[%clk 0:00:13]}  Kxc7 {[%clk 0:00:08]} 55. Kg1 {[%clk 0:00:13]}  Kb7 {[%clk 0:00:08]} 56. Kf2 {[%clk 0:00:13]}  Kb6 {[%clk 0:00:09]} 57. Ke3 {[%clk 0:00:14]}  Kb7 {[%clk 0:00:09]} 58. Ke4 {[%clk 0:00:14]}  Re8+ {[%clk 0:00:08]} 59. Kf5 {[%clk 0:00:14]}  Ka8 {[%clk 0:00:07]} 60. Kxg5 {[%clk 0:00:13]}  Rg8+ {[%clk 0:00:08]} 61. Kxh4 {[%clk 0:00:14]}  Rxg2 {[%clk 0:00:09]} 62. f4 {[%clk 0:00:14]}  Rg8 {[%clk 0:00:08]} 63. f5 {[%clk 0:00:14]}  Rg7 {[%clk 0:00:08]} 64. f6 {[%clk 0:00:13]}  Rg6 {[%clk 0:00:08]} 65. Rf4 {[%clk 0:00:12]}  Rg8 {[%clk 0:00:07]} 66. f7 {[%clk 0:00:11]}  Rf8 {[%clk 0:00:08]} 67. Kg5 {[%clk 0:00:12]}  Kxa7 {[%clk 0:00:08]} 68. Kg6 {[%clk 0:00:12]}  Kb7 {[%clk 0:00:06]} 69. Kg7 {[%clk 0:00:13]} 1-0

[Event "January 2 Late 2024"]
[Site "https://www.chess.com"]
[Date "2024.01.02"]
[Round "10"]
[White "RemcoSpr"]
[Black "Palczert, Matyas"]
[Result "1/2-1/2"]
[Board "94"]
[TimeControl "180+1"]
[BlackFideId "784958"]
[WhiteElo "2396"]
[BlackElo "2559"]
[BlackTeam "HUN"]
[WhiteClock "0:00:03"]
[BlackClock "0:00:07"]

1. e4 {[%clk 0:03:00]}  c5 {[%clk 0:02:37]} 2. Nf3 {[%clk 0:02:59]}  e6 {[%clk 0:02:36]} 3. d4 {[%clk 0:02:59]}  cxd4 {[%clk 0:02:36]} 4. Nxd4 {[%clk 0:03:00]}  Nc6 {[%clk 0:02:36]} 5. Nc3 {[%clk 0:02:54]}  Qc7 {[%clk 0:02:36]} 6. Be2 {[%clk 0:02:54]}  Nf6 {[%clk 0:02:35]} 7. O-O {[%clk 0:02:52]}  Be7 {[%clk 0:02:32]} 8. Be3 {[%clk 0:02:49]}  O-O {[%clk 0:02:31]} 9. f4 {[%clk 0:02:46]}  d6 {[%clk 0:02:32]} 10. Qe1 {[%clk 0:02:01]}  Nxd4 {[%clk 0:02:31]} 11. Bxd4 {[%clk 0:02:01]}  e5 {[%clk 0:02:31]} 12. Be3 {[%clk 0:01:56]}  exf4 {[%clk 0:02:31]} 13. Bxf4 {[%clk 0:01:49]}  Qb6+ {[%clk 0:02:19]} 14. Kh1 {[%clk 0:01:48]}  Qxb2 {[%clk 0:02:11]} 15. Qg3 {[%clk 0:01:44]}  Re8 {[%clk 0:01:16]} 16. Rab1 {[%clk 0:01:10]}  Qxc2 {[%clk 0:01:07]} 17. Rfc1 {[%clk 0:00:58]}  Nxe4 {[%clk 0:01:07]} 18. Qf3 {[%clk 0:00:25]}  Nd2 {[%clk 0:00:57]} 19. Rxc2 {[%clk 0:00:23]}  Nxf3 {[%clk 0:00:56]} 20. Bxf3 {[%clk 0:00:15]}  Bf6 {[%clk 0:00:57]} 21. Rd1 {[%clk 0:00:09]}  Bf5 {[%clk 0:00:55]} 22. Rcc1 {[%clk 0:00:09]}  Rac8 {[%clk 0:00:53]} 23. Nd5 {[%clk 0:00:09]}  Bb2 {[%clk 0:00:47]} 24. Rxc8 {[%clk 0:00:08]}  Bxc8 {[%clk 0:00:46]} 25. Bxd6 {[%clk 0:00:08]}  Be6 {[%clk 0:00:42]} 26. Nf4 {[%clk 0:00:06]}  Bxa2 {[%clk 0:00:41]} 27. Bxb7 {[%clk 0:00:05]}  Bb3 {[%clk 0:00:36]} 28. Rb1 {[%clk 0:00:05]}  Bc2 {[%clk 0:00:33]} 29. Rf1 {[%clk 0:00:05]}  a5 {[%clk 0:00:29]} 30. Bd5 {[%clk 0:00:05]}  a4 {[%clk 0:00:27]} 31. Nh3 {[%clk 0:00:05]}  Bg6 {[%clk 0:00:21]} 32. Ng5 {[%clk 0:00:05]}  Bf6 {[%clk 0:00:12]} 33. Nf3 {[%clk 0:00:05]}  a3 {[%clk 0:00:12]} 34. Bxa3 {[%clk 0:00:05]}  Rd8 {[%clk 0:00:12]} 35. Re1 {[%clk 0:00:05]}  h6 {[%clk 0:00:11]} 36. Bc4 {[%clk 0:00:04]}  Rc8 {[%clk 0:00:11]} 37. Bf1 {[%clk 0:00:04]}  Ra8 {[%clk 0:00:10]} 38. Bc5 {[%clk 0:00:04]}  Kh7 {[%clk 0:00:10]} 39. Bd4 {[%clk 0:00:04]}  Bd8 {[%clk 0:00:09]} 40. Ne5 {[%clk 0:00:04]}  Ba5 {[%clk 0:00:08]} 41. Ra1 {[%clk 0:00:04]}  Be4 {[%clk 0:00:06]} 42. Bd3 {[%clk 0:00:02]}  Bxd3 {[%clk 0:00:07]} 43. Nxd3 {[%clk 0:00:03]}  Rd8 {[%clk 0:00:07]} 44. Rxa5 {[%clk 0:00:03]}  Rxd4 {[%clk 0:00:07]} 45. Ne1 {[%clk 0:00:03]}  Rd1 {[%clk 0:00:06]} 46. Re5 {[%clk 0:00:03]}  f6 {[%clk 0:00:06]} 47. Re2 {[%clk 0:00:04]}  Kg6 {[%clk 0:00:07]} 48. Kg1 {[%clk 0:00:04]}  Kf5 {[%clk 0:00:07]} 49. Kf2 {[%clk 0:00:05]}  g5 {[%clk 0:00:08]} 50. Nf3 {[%clk 0:00:05]}  Rd6 {[%clk 0:00:07]} 51. h3 {[%clk 0:00:05]}  h5 {[%clk 0:00:07]} 52. Kg3 {[%clk 0:00:05]}  Rd3 {[%clk 0:00:06]} 53. Rf2 {[%clk 0:00:04]}  g4 {[%clk 0:00:06]} 54. hxg4+ {[%clk 0:00:02]}  hxg4 {[%clk 0:00:06]} 55. Kh4 {[%clk 0:00:01]}  gxf3 {[%clk 0:00:07]} 56. Rxf3+ {[%clk 0:00:02]}  Rxf3 {[%clk 0:00:06]} 57. gxf3 {[%clk 0:00:03]}  Kf4 {[%clk 0:00:06]} 58. Kh5 {[%clk 0:00:03]}  Kxf3 {[%clk 0:00:07]} 59. Kg6 {[%clk 0:00:03]}  f5 {[%clk 0:00:07]} 60. Kxf5 {[%clk 0:00:03]} 1/2-1/2

[Event "January 2 Late 2024"]
[Site "https://www.chess.com"]
[Date "2024.01.02"]
[Round "10"]
[White "Paragua, Megan Althea"]
[Black "AmanteDeMoi"]
[Result "1/2-1/2"]
[Board "95"]
[TimeControl "180+1"]
[WhiteFideId "30973007"]
[WhiteElo "2373"]
[BlackElo "2551"]
[WhiteTeam "USA"]
[WhiteClock "0:00:46"]
[BlackClock "0:01:38"]

1. d4 {[%clk 0:03:00]}  g6 {[%clk 0:02:56]} 2. Nf3 {[%clk 0:03:00]}  Bg7 {[%clk 0:02:57]} 3. e3 {[%clk 0:02:59]}  d6 {[%clk 0:02:57]} 4. Be2 {[%clk 0:02:58]}  e5 {[%clk 0:02:57]} 5. dxe5 {[%clk 0:02:57]}  dxe5 {[%clk 0:02:58]} 6. Qxd8+ {[%clk 0:02:56]}  Kxd8 {[%clk 0:02:59]} 7. Nc3 {[%clk 0:02:54]}  f6 {[%clk 0:02:59]} 8. O-O {[%clk 0:02:53]}  Be6 {[%clk 0:02:58]} 9. Bd2 {[%clk 0:02:46]}  Nd7 {[%clk 0:02:58]} 10. Rfd1 {[%clk 0:02:45]}  c6 {[%clk 0:02:59]} 11. Ne4 {[%clk 0:02:43]}  Kc7 {[%clk 0:02:59]} 12. Bb4 {[%clk 0:02:39]}  Bf8 {[%clk 0:03:00]} 13. Bxf8 {[%clk 0:02:38]}  Rxf8 {[%clk 0:03:00]} 14. Nd6 {[%clk 0:02:35]}  a5 {[%clk 0:02:52]} 15. Bc4 {[%clk 0:02:32]}  Bxc4 {[%clk 0:02:50]} 16. Nxc4 {[%clk 0:02:33]}  a4 {[%clk 0:02:48]} 17. b3 {[%clk 0:02:32]}  b5 {[%clk 0:02:47]} 18. Ncd2 {[%clk 0:02:28]}  Nc5 {[%clk 0:02:47]} 19. Ne1 {[%clk 0:02:22]}  Rd8 {[%clk 0:02:46]} 20. b4 {[%clk 0:02:19]}  Na6 {[%clk 0:02:40]} 21. Nd3 {[%clk 0:02:14]}  Ne7 {[%clk 0:02:38]} 22. Ne4 {[%clk 0:02:08]}  Nd5 {[%clk 0:02:36]} 23. Ndc5 {[%clk 0:02:04]}  Nxc5 {[%clk 0:02:36]} 24. Nxc5 {[%clk 0:02:03]}  Kb6 {[%clk 0:02:30]} 25. a3 {[%clk 0:02:02]}  Nc3 {[%clk 0:02:30]} 26. Rd3 {[%clk 0:01:59]}  Rxd3 {[%clk 0:02:23]} 27. cxd3 {[%clk 0:01:58]}  Rd8 {[%clk 0:02:24]} 28. Kf1 {[%clk 0:01:57]}  f5 {[%clk 0:02:19]} 29. Rc1 {[%clk 0:01:55]}  Nd5 {[%clk 0:02:17]} 30. Ke2 {[%clk 0:01:52]}  Rd6 {[%clk 0:02:15]} 31. g3 {[%clk 0:01:50]}  Nc7 {[%clk 0:02:12]} 32. f4 {[%clk 0:01:16]}  exf4 {[%clk 0:02:10]} 33. gxf4 {[%clk 0:01:17]}  Nd5 {[%clk 0:02:08]} 34. d4 {[%clk 0:01:14]}  Rd8 {[%clk 0:02:07]} 35. Nd3 {[%clk 0:01:12]}  Re8 {[%clk 0:02:03]} 36. Ne5 {[%clk 0:01:13]}  Re6 {[%clk 0:02:04]} 37. Nd7+ {[%clk 0:01:12]}  Kc7 {[%clk 0:02:00]} 38. Ne5 {[%clk 0:01:12]}  Kb6 {[%clk 0:01:56]} 39. h4 {[%clk 0:01:11]}  Kb7 {[%clk 0:01:54]} 40. Rh1 {[%clk 0:01:06]}  h5 {[%clk 0:01:43]} 41. Rg1 {[%clk 0:01:06]}  Ne7 {[%clk 0:01:44]} 42. Nd3 {[%clk 0:01:05]}  Kb6 {[%clk 0:01:41]} 43. Nc5 {[%clk 0:01:03]}  Rd6 {[%clk 0:01:42]} 44. Kf3 {[%clk 0:00:59]}  Nd5 {[%clk 0:01:41]} 45. Nd3 {[%clk 0:00:59]}  Ne7 {[%clk 0:01:41]} 46. Ne5 {[%clk 0:00:59]}  Re6 {[%clk 0:01:41]} 47. Rc1 {[%clk 0:00:59]}  Kc7 {[%clk 0:01:40]} 48. Rc5 {[%clk 0:00:55]}  Kb6 {[%clk 0:01:39]} 49. Nd3 {[%clk 0:00:49]}  Nd5 {[%clk 0:01:38]} 50. Ne5 {[%clk 0:00:48]}  Ne7 {[%clk 0:01:38]} 51. Rc1 {[%clk 0:00:49]}  Kb7 {[%clk 0:01:38]} 52. Nd3 {[%clk 0:00:47]}  Kb6 {[%clk 0:01:38]} 53. Ne5 {[%clk 0:00:46]} 1/2-1/2

[Event "January 2 Late 2024"]
[Site "https://www.chess.com"]
[Date "2024.01.02"]
[Round "10"]
[White "Kleibel, Uwe"]
[Black "Lymar, Vladislav"]
[Result "0-1"]
[Board "98"]
[TimeControl "180+1"]
[WhiteFideId "1270982"]
[BlackFideId "14162180"]
[WhiteElo "2344"]
[BlackElo "2538"]
[WhiteTeam "GER"]
[BlackTeam "UKR"]
[WhiteClock "0:00:09"]
[BlackClock "0:00:07"]

1. e4 {[%clk 0:03:00]}  c5 {[%clk 0:02:58]} 2. Nf3 {[%clk 0:03:01]}  a6 {[%clk 0:02:59]} 3. g3 {[%clk 0:02:55]}  d5 {[%clk 0:02:55]} 4. exd5 {[%clk 0:02:54]}  Qxd5 {[%clk 0:02:56]} 5. Bg2 {[%clk 0:02:55]}  Qe4+ {[%clk 0:02:53]} 6. Kf1 {[%clk 0:02:52]}  Nf6 {[%clk 0:02:51]} 7. Nc3 {[%clk 0:02:51]}  Qf5 {[%clk 0:02:50]} 8. d4 {[%clk 0:02:51]}  e6 {[%clk 0:02:47]} 9. h3 {[%clk 0:02:45]}  cxd4 {[%clk 0:02:46]} 10. Nxd4 {[%clk 0:02:45]}  Qa5 {[%clk 0:02:47]} 11. Nb3 {[%clk 0:02:43]}  Qc7 {[%clk 0:02:43]} 12. Bf4 {[%clk 0:02:42]}  Qc4+ {[%clk 0:02:41]} 13. Kg1 {[%clk 0:02:41]}  Be7 {[%clk 0:02:39]} 14. a3 {[%clk 0:02:16]}  O-O {[%clk 0:02:38]} 15. Na5 {[%clk 0:02:16]}  Qc5 {[%clk 0:02:09]} 16. Nxb7 {[%clk 0:02:12]}  Bxb7 {[%clk 0:01:59]} 17. Bxb7 {[%clk 0:02:13]}  Nbd7 {[%clk 0:01:57]} 18. Bxa8 {[%clk 0:01:59]}  Rxa8 {[%clk 0:01:58]} 19. Kg2 {[%clk 0:01:55]}  e5 {[%clk 0:01:58]} 20. Be3 {[%clk 0:01:55]}  Qc6+ {[%clk 0:01:54]} 21. Qf3 {[%clk 0:01:55]}  e4 {[%clk 0:01:55]} 22. Qe2 {[%clk 0:01:44]}  Ne5 {[%clk 0:01:53]} 23. Rhd1 {[%clk 0:01:39]}  Nc4 {[%clk 0:01:40]} 24. Rd4 {[%clk 0:00:58]}  Nxb2 {[%clk 0:01:32]} 25. Na4 {[%clk 0:00:56]}  Nxa4 {[%clk 0:01:27]} 26. Rc4 {[%clk 0:00:54]}  Qb5 {[%clk 0:01:23]} 27. Kf1 {[%clk 0:00:49]}  Nd5 {[%clk 0:01:16]} 28. Bd4 {[%clk 0:00:48]}  Re8 {[%clk 0:00:51]} 29. Rd1 {[%clk 0:00:46]}  Bxa3 {[%clk 0:00:48]} 30. Ra1 {[%clk 0:00:20]}  e3 {[%clk 0:00:24]} 31. f3 {[%clk 0:00:18]}  Nab6 {[%clk 0:00:14]} 32. Rxa3 {[%clk 0:00:07]}  Nxc4 {[%clk 0:00:10]} 33. Rb3 {[%clk 0:00:08]}  Nd2+ {[%clk 0:00:09]} 34. Ke1 {[%clk 0:00:08]}  Qxe2+ {[%clk 0:00:06]} 35. Kxe2 {[%clk 0:00:08]}  Nxb3 {[%clk 0:00:07]} 36. cxb3 {[%clk 0:00:09]}  a5 {[%clk 0:00:07]} 37. f4 {[%clk 0:00:09]}  Rb8 {[%clk 0:00:07]} 38. Kd3 {[%clk 0:00:09]}  Rxb3+ {[%clk 0:00:07]} 39. Ke4 {[%clk 0:00:10]}  e2 {[%clk 0:00:07]} 40. Kxd5 {[%clk 0:00:09]}  e1=Q {[%clk 0:00:07]} 0-1